{"text_format":"1","workbook":"xlsx","n_sheets":3,"sheets":["Instruccions","Reformulació Pressupost Ba","Resum Pressupost"],"not_rendered":{"charts":0,"images":5,"macros":1,"external_links":0,"defined_names":8,"comments":2,"pivot_tables":0},"unopened":[],"bounds":{"document_bytes":16777216,"sheet_cells":100000,"rows_first":2000,"rows_last":500,"rows_between":2000,"halvings":0,"cell_chars":16384,"cell_head_chars":4096},"cells_cut":0,"cells_raw":0,"read":"whole","date_system":"1900"}

{"sheet":"Instruccions","index":0,"n_rows":24,"n_cols":10,"rows_kept":24,"cut":false,"hidden":false,"merged":[[22,1,22,16],[23,1,23,16],[1,9,1,11],[2,2,2,17],[4,2,4,17]]}
[]
[null,null,null,null,null,null,null,null,null,"Doc_basic3_pressup_reformulat_Ba INSTRUCCIONS"]
[null,null,"SUBVENCIONS DE L’AJUNTAMENT DE BARCELONA PER L’ENFORTIMENT DE L’ECONOMIA SOCIAL I SOLIDÀRIA I PER LA INTERCOOPERACIÓ EN L’ESTRATÈGIA #ESSBCN2030 - ENFORTIM L’ESS 2023"]
[]
[null,null,"Aspectes rellevants relacionats amb la reformulació"]
[]
[]
[]
[]
[null,"1. Emplenar la pestanya  \"Reformulació Pressupost\" amb les dades econòmiques del projecte:"]
[null,"1.1  Emplenar els quadres DADES BÀSIQUES-PREVISIÓ DE DESPESES DEL PROJECTE SUBVENCIONABLE INICIAL, amb les dades econòmiques de la proposta inicial amb subvenció atorgada."]
[null,"1.2  Emplenar els quadres DADES BÀSIQUES-PREVISIÓ DE DESPESES DEL PROJECTE REFORMULAT, amb les dades econòmiques de la proposta de reformulació."]
[null,"2. Revisar i emplenar la pestanya  \"Resum Pressupost\" amb les dades econòmiques del projecte:"]
[null,"3. Imprimir els fulls de les 2 pestanyes (Reformulació pressupost i Resum Pressupost). En format pdf."]
[]
[]
[]
[null,"Clica la icona per generar un document PDF del llibre"]
[]
[]
[]
[]
[null,"4. Si la sol·licitud es va presentar per via telemàtica, cal que registreu la documentació, telemàticament, com a tràmit específic, dins la convocatòria específica com annexió de documents addicionals i feu servir el número de tràmit que el sistema de registre us va donar en el moment de la presentació de la sol·licitud de la subvenció."]
[null,"5. En el cas que registreu la documentació telemàticament, com a instància genèrica, mitjançant certificat digital, us recomanem que aviseu a l'adreça de correu electrònic subvencions_ec_solidaria@bcn.cat, per tal de poder fer-ne un seguiment, així com també en els casos que presenteu la documentació a través d'una Oficina d'Atenció Ciutadana de l'Ajuntament, si no heu pogut obtenir el certificat digital (els requisits per obtenir-lo els trobareu a l'Oficina Virtual de Tràmits de la Seu Electrònica: https://seuelectronica.ajuntament.barcelona.cat/oficinavirtual/)."]

{"sheet":"Reformulació Pressupost Ba","index":1,"n_rows":117,"n_cols":10,"rows_kept":117,"cut":false,"hidden":false,"merged":[[104,0,104,7],[3,0,4,8],[1,1,1,8],[18,0,18,3],[10,6,10,7],[18,6,18,8],[6,2,6,5],[101,0,101,7],[102,0,102,7],[103,0,103,7],[105,0,105,7],[106,0,106,7],[107,0,107,7],[108,0,108,7],[109,0,109,7],[115,0,115,7],[116,0,116,7],[110,0,110,7],[111,0,111,7],[112,0,112,7],[113,0,113,7],[114,0,114,7]]}
[]
[null,"Reformulació pressupost Modalitat Ba"]
[]
["Programa de subvencions de l'Ajuntament de Barcelona per a la reactivació i l'enfortiment de l'Economia Social i Solidària i el desenvolupament de projectes d'intercooperació que desenvolupen l'Estratègia #ESSBCN2030"]
[]
[]
[]
["DADES BÀSIQUES"]
["Nom de la persona física/ jurídica",null,{"$f":"+IF(H9>Dadesbasiques[[#This Row],[Columna1]],\"ALERTA: La quantia de la subvenció atorgada no pot superar el 80% de la despesa total del projecte a subvencionar\", \" \")","v":" "},null,null,"  "]
["NIF de la persona física/ jurídica",null,{"$f":"+IF(H10>Dadesbasiques[[#This Row],[Columna1]],\"ALERTA: La quantia de la subvenció atorgada no pot superar el 80% de la despesa total del projecte a subvencionar\", \" \")","v":" "}]
["Nom del projecte subvencionable",null,{"$f":"+IF(H11>Dadesbasiques[[#This Row],[Columna1]],\"ALERTA: La quantia de la subvenció atorgada no pot superar el 80% de la despesa total del projecte a subvencionar\", \" \")","v":" "},null,null,null,"DADES BÀSIQUES PROJECTE REFORMULAT"]
["Import total del projecte subvencionable",null,null,null,null,null,"Import total del projecte REFORMULAT"]
["Import imputable a la subvenció municipal",null,null,null,null,null,"Import imputable a la subvenció ATORGADA"]
["Import de l'aportació / Cofinançament de l'organització",{"$f":"+B12-B13","v":0},null,null,null,null,"Import de l'aportació / Cofinançament de l'organització",{"$f":"H12-H13","v":0}]
["% de l'import sol·licitat respecte el total del projecte subvencionable (*)",{"$f":"B13/B12","v":{"$error":"#DIV/0!"}},null,null,null,null,"% de l'import sol·licitat respecte el total del projecte subvencionat",{"$f":"H13/H12","v":{"$error":"#DIV/0!"}},{"$f":"+IF(H15>Dadesbasiques[[#This Row],[Columna1]],\"*Aquest percentatge ha de ser igual o menor al percentatge subvencionat inicialment.\",\" \")","v":{"$error":"#DIV/0!"}}]
["Data inici del projecte subvencionat (dd/mm/aaaa)",null,{"$f":"+IF(H16>Dadesbasiques[[#This Row],[Columna1]],\"ALERTA: La quantia de la subvenció atorgada no pot superar el 80% de la despesa total del projecte a subvencionar\", \" \")","v":" "}]
["Data fi del projecte subvencionat (dd/mm/aaaa)",null,{"$f":"+IF(H17>Dadesbasiques[[#This Row],[Columna1]],\"ALERTA: La quantia de la subvenció atorgada no pot superar el 80% de la despesa total del projecte a subvencionar\", \" \")","v":" "}]
[]
["PREVISIÓ DE DESPESES DEL PROJECTE SUBVENCIONABLE INICIAL",null,null,null,null,null,"PREVISIÓ DE DESPESES DEL PROJECTE REFORMULAT"]
[]
["Partides","Import imputable a la subvenció municipal","Import de l'aportació / Cofinançament de l'entitat","Import total del projecte",null,null,"Import imputable a la subvenció municipal","Import de l'aportació / Cofinançament de l'entitat","Import total del projecte"]
["D1. Retribucions i seguretat social (règim general o règim d’autònoms) del personal propi vinculat/da al projecte (màxim 25% subvenció)",{"$f":"SUM(B23:B27)","v":0},{"$f":"SUM(C23:C27)","v":0},{"$f":"DespesesProjecte5[[#This Row],[Import imputable a la subvenció municipal]]+DespesesProjecte5[[#This Row],[Import de l''aportació / Cofinançament de l''entitat]]","v":0},null,null,{"$f":"SUM(G23:G27)","v":0},{"$f":"SUM(H23:H27)","v":0},{"$f":"+G22+H22","v":0}]
[null,null,null,{"$f":"SUM(DespesesProjecte5[[#This Row],[Import imputable a la subvenció municipal]],DespesesProjecte5[[#This Row],[Import de l''aportació / Cofinançament de l''entitat]])","v":0},null,null,null,null,{"$f":"+G23+H23","v":0}]
[null,null,null,{"$f":"SUM(DespesesProjecte5[[#This Row],[Import imputable a la subvenció municipal]],DespesesProjecte5[[#This Row],[Import de l''aportació / Cofinançament de l''entitat]])","v":0},null,null,null,null,0]
[null,null,null,{"$f":"SUM(DespesesProjecte5[[#This Row],[Import imputable a la subvenció municipal]],DespesesProjecte5[[#This Row],[Import de l''aportació / Cofinançament de l''entitat]])","v":0},null,null,null,null,0]
[null,null,null,{"$f":"SUM(DespesesProjecte5[[#This Row],[Import imputable a la subvenció municipal]],DespesesProjecte5[[#This Row],[Import de l''aportació / Cofinançament de l''entitat]])","v":0},null,null,null,null,0]
[null,null,null,{"$f":"SUM(DespesesProjecte5[[#This Row],[Import imputable a la subvenció municipal]],DespesesProjecte5[[#This Row],[Import de l''aportació / Cofinançament de l''entitat]])","v":0},null,null,null,null,0]
["TOTAL DE DESPESES DEL PERSONAL\nMàxim 25% de l'import imputable a la subvenció municipal si es tracta de personal propi assignat al projecte",{"$f":"B22","v":0},{"$f":"C22","v":0},{"$f":"D22","v":0},null,null,{"$f":"G22","v":0},{"$f":"H22","v":0},{"$f":"I22","v":0},{"$f":"+IF(G28>H13*0.25,\"ALERTA: Màxim 25% de l'import imputable a la subvenció municipal\", \" \")","v":" "}]
["D2. Treballs realitzats per professionals i empreses externes directament vinculades a l’acompanyament de processos de l’organització i amb les seves associades",{"$f":"SUM(B30:B32)","v":0},{"$f":"SUM(C30:C32)","v":0},{"$f":"SUM(DespesesProjecte5[[#This Row],[Import imputable a la subvenció municipal]],DespesesProjecte5[[#This Row],[Import de l''aportació / Cofinançament de l''entitat]])","v":0},null,null,{"$f":"SUM(G30:G32)","v":0},{"$f":"SUM(H30:H32)","v":0},0]
[null,null,null,{"$f":"SUM(DespesesProjecte5[[#This Row],[Import imputable a la subvenció municipal]],DespesesProjecte5[[#This Row],[Import de l''aportació / Cofinançament de l''entitat]])","v":0},null,null,null,null,0]
[null,null,null,{"$f":"SUM(DespesesProjecte5[[#This Row],[Import imputable a la subvenció municipal]],DespesesProjecte5[[#This Row],[Import de l''aportació / Cofinançament de l''entitat]])","v":0},null,null,null,null,0]
[null,null,null,{"$f":"SUM(DespesesProjecte5[[#This Row],[Import imputable a la subvenció municipal]],DespesesProjecte5[[#This Row],[Import de l''aportació / Cofinançament de l''entitat]])","v":0},null,null,null,null,0]
["D3. Lloguer de béns immobles directament vinculats al projecte",{"$f":"SUM(B34:B36)","v":0},{"$f":"SUM(C34:C36)","v":0},{"$f":"SUM(DespesesProjecte5[[#This Row],[Import imputable a la subvenció municipal]],DespesesProjecte5[[#This Row],[Import de l''aportació / Cofinançament de l''entitat]])","v":0},null,null,{"$f":"SUM(G34:G36)","v":0},{"$f":"SUM(H34:H36)","v":0},0]
[null,null,null,{"$f":"SUM(DespesesProjecte5[[#This Row],[Import imputable a la subvenció municipal]],DespesesProjecte5[[#This Row],[Import de l''aportació / Cofinançament de l''entitat]])","v":0},null,null,null,null,0]
[null,null,null,{"$f":"SUM(DespesesProjecte5[[#This Row],[Import imputable a la subvenció municipal]],DespesesProjecte5[[#This Row],[Import de l''aportació / Cofinançament de l''entitat]])","v":0},null,null,null,null,0]
[null,null,null,{"$f":"SUM(DespesesProjecte5[[#This Row],[Import imputable a la subvenció municipal]],DespesesProjecte5[[#This Row],[Import de l''aportació / Cofinançament de l''entitat]])","v":0},null,null,null,null,0]
["D4. Adquisició de materials i béns consumibles íntegrament imputables al projecte",{"$f":"SUM(B38:B40)","v":0},{"$f":"SUM(C38:C40)","v":0},{"$f":"SUM(DespesesProjecte5[[#This Row],[Import imputable a la subvenció municipal]],DespesesProjecte5[[#This Row],[Import de l''aportació / Cofinançament de l''entitat]])","v":0},null,null,{"$f":"SUM(G38:G40)","v":0},{"$f":"SUM(H38:H40)","v":0},0]
[null,null,null,{"$f":"SUM(DespesesProjecte5[[#This Row],[Import imputable a la subvenció municipal]],DespesesProjecte5[[#This Row],[Import de l''aportació / Cofinançament de l''entitat]])","v":0},null,null,null,null,0]
[null,null,null,{"$f":"SUM(DespesesProjecte5[[#This Row],[Import imputable a la subvenció municipal]],DespesesProjecte5[[#This Row],[Import de l''aportació / Cofinançament de l''entitat]])","v":0},null,null,null,null,0]
[null,null,null,{"$f":"SUM(DespesesProjecte5[[#This Row],[Import imputable a la subvenció municipal]],DespesesProjecte5[[#This Row],[Import de l''aportació / Cofinançament de l''entitat]])","v":0},null,null,null,null,0]
["D5. Publicitat i propaganda de les activitats directament vinculades al projecte",{"$f":"SUM(B42:B44)","v":0},{"$f":"SUM(C42:C44)","v":0},{"$f":"SUM(DespesesProjecte5[[#This Row],[Import imputable a la subvenció municipal]],DespesesProjecte5[[#This Row],[Import de l''aportació / Cofinançament de l''entitat]])","v":0},null,null,{"$f":"SUM(G42:G44)","v":0},{"$f":"SUM(H42:H44)","v":0},0]
[null,null,null,{"$f":"SUM(DespesesProjecte5[[#This Row],[Import imputable a la subvenció municipal]],DespesesProjecte5[[#This Row],[Import de l''aportació / Cofinançament de l''entitat]])","v":0},null,null,null,null,0]
[null,null,null,{"$f":"SUM(DespesesProjecte5[[#This Row],[Import imputable a la subvenció municipal]],DespesesProjecte5[[#This Row],[Import de l''aportació / Cofinançament de l''entitat]])","v":0},null,null,null,null,0]
[null,null,null,{"$f":"SUM(DespesesProjecte5[[#This Row],[Import imputable a la subvenció municipal]],DespesesProjecte5[[#This Row],[Import de l''aportació / Cofinançament de l''entitat]])","v":0},null,null,null,null,0]
["D6. Viatges i desplaçaments imputables a les activitats del projecte (màxim 10% subvenció)",{"$f":"SUM(B46:B48)","v":0},{"$f":"SUM(C46:C48)","v":0},{"$f":"SUM(DespesesProjecte5[[#This Row],[Import imputable a la subvenció municipal]],DespesesProjecte5[[#This Row],[Import de l''aportació / Cofinançament de l''entitat]])","v":0},null,null,{"$f":"SUM(G46:G48)","v":0},{"$f":"SUM(H46:H48)","v":0},0,{"$f":"+IF(G45>H13*0.1,\"ALERTA: Màxim 10% de l'import imputable a la subvenció municipal\", \" \")","v":" "}]
[null,null,null,{"$f":"SUM(DespesesProjecte5[[#This Row],[Import imputable a la subvenció municipal]],DespesesProjecte5[[#This Row],[Import de l''aportació / Cofinançament de l''entitat]])","v":0},null,null,null,null,0]
[null,null,null,{"$f":"SUM(DespesesProjecte5[[#This Row],[Import imputable a la subvenció municipal]],DespesesProjecte5[[#This Row],[Import de l''aportació / Cofinançament de l''entitat]])","v":0},null,null,null,null,0]
[null,null,null,{"$f":"SUM(DespesesProjecte5[[#This Row],[Import imputable a la subvenció municipal]],DespesesProjecte5[[#This Row],[Import de l''aportació / Cofinançament de l''entitat]])","v":0},null,null,null,null,0]
["D7. Despeses de l’informe d’auditoria (màxim 1.500€ subvenció)",{"$f":"SUM(B50:B50)","v":0},{"$f":"SUM(C50:C50)","v":0},{"$f":"SUM(DespesesProjecte5[[#This Row],[Import imputable a la subvenció municipal]],DespesesProjecte5[[#This Row],[Import de l''aportació / Cofinançament de l''entitat]])","v":0},null,null,{"$f":"SUM(G50:G50)","v":0},{"$f":"SUM(H50:H50)","v":0},0,{"$f":"+IF(G49>1500,\"ALERTA: Màxim 1.500€ imputables a la subvenció\", \" \")","v":" "}]
[null,null,null,{"$f":"SUM(DespesesProjecte5[[#This Row],[Import imputable a la subvenció municipal]],DespesesProjecte5[[#This Row],[Import de l''aportació / Cofinançament de l''entitat]])","v":0},null,null,null,null,0]
["D8. Altres despeses que de manera justificada puguin imputar-se directament al projecte",{"$f":"SUM(B52:B54)","v":0},{"$f":"SUM(C52:C54)","v":0},{"$f":"SUM(DespesesProjecte5[[#This Row],[Import imputable a la subvenció municipal]],DespesesProjecte5[[#This Row],[Import de l''aportació / Cofinançament de l''entitat]])","v":0},null,null,{"$f":"SUM(G52:G54)","v":0},{"$f":"SUM(H52:H54)","v":0},0]
[null,null,null,{"$f":"SUM(DespesesProjecte5[[#This Row],[Import imputable a la subvenció municipal]],DespesesProjecte5[[#This Row],[Import de l''aportació / Cofinançament de l''entitat]])","v":0},null,null,null,null,0]
[null,null,null,{"$f":"SUM(DespesesProjecte5[[#This Row],[Import imputable a la subvenció municipal]],DespesesProjecte5[[#This Row],[Import de l''aportació / Cofinançament de l''entitat]])","v":0},null,null,null,null,0]
[null,null,null,{"$f":"SUM(DespesesProjecte5[[#This Row],[Import imputable a la subvenció municipal]],DespesesProjecte5[[#This Row],[Import de l''aportació / Cofinançament de l''entitat]])","v":0},null,null,null,null,0]
["TOTAL D'ALTRES DESPESES DIRECTES ",{"$f":"SUM(B29,B33,B37,B41,B45,B49,B51)","v":0},{"$f":"SUM(C29,C33,C37,C41,C45,C49,C51)","v":0},{"$f":"SUM(D29,D33,D37,D41,D45,D49,D51)","v":0},null,null,{"$f":"SUM(G29,G33,G37,G41,G45,G49,G51)","v":0},{"$f":"SUM(H29,H33,H37,H41,H45,H49,H51)","v":0},{"$f":"SUM(I29,I33,I37,I41,I45,I49,I51)","v":0}]
["TOTAL DESPESES DIRECTES (aquelles que s’identifiquen directament amb el projecte subvencionable)",{"$f":"SUM(B28,B55)","v":0},{"$f":"SUM(C28,C55)","v":0},{"$f":"SUM(D28,D55)","v":0},null,null,{"$f":"SUM(G28,G55)","v":0},{"$f":"SUM(H28,H55)","v":0},{"$f":"SUM(I28,I55)","v":0}]
["I1. Personal de suport al projecte (nòmines i seguretat social)",{"$f":"SUM(B58:B60)","v":0},{"$f":"SUM(C58:C60)","v":0},{"$f":"SUM(DespesesProjecte5[[#This Row],[Import imputable a la subvenció municipal]],DespesesProjecte5[[#This Row],[Import de l''aportació / Cofinançament de l''entitat]])","v":0},null,null,{"$f":"SUM(G58:G60)","v":0},{"$f":"SUM(H58:H60)","v":0},{"$f":"+G57+H57","v":0}]
[null,null,null,{"$f":"SUM(DespesesProjecte5[[#This Row],[Import imputable a la subvenció municipal]],DespesesProjecte5[[#This Row],[Import de l''aportació / Cofinançament de l''entitat]])","v":0},null,null,null,null,{"$f":"+G58+H58","v":0}]
[null,null,null,{"$f":"SUM(DespesesProjecte5[[#This Row],[Import imputable a la subvenció municipal]],DespesesProjecte5[[#This Row],[Import de l''aportació / Cofinançament de l''entitat]])","v":0},null,null,null,null,0]
[null,null,null,{"$f":"SUM(DespesesProjecte5[[#This Row],[Import imputable a la subvenció municipal]],DespesesProjecte5[[#This Row],[Import de l''aportació / Cofinançament de l''entitat]])","v":0},null,null,null,null,0]
["I2. Assegurances",{"$f":"SUM(B62:B64)","v":0},{"$f":"SUM(C62:C64)","v":0},{"$f":"SUM(DespesesProjecte5[[#This Row],[Import imputable a la subvenció municipal]],DespesesProjecte5[[#This Row],[Import de l''aportació / Cofinançament de l''entitat]])","v":0},null,null,{"$f":"SUM(G62:G64)","v":0},{"$f":"SUM(H62:H64)","v":0},0]
[null,null,null,{"$f":"SUM(DespesesProjecte5[[#This Row],[Import imputable a la subvenció municipal]],DespesesProjecte5[[#This Row],[Import de l''aportació / Cofinançament de l''entitat]])","v":0},null,null,null,null,0]
[null,null,null,{"$f":"SUM(DespesesProjecte5[[#This Row],[Import imputable a la subvenció municipal]],DespesesProjecte5[[#This Row],[Import de l''aportació / Cofinançament de l''entitat]])","v":0},null,null,null,null,0]
[null,null,null,{"$f":"SUM(DespesesProjecte5[[#This Row],[Import imputable a la subvenció municipal]],DespesesProjecte5[[#This Row],[Import de l''aportació / Cofinançament de l''entitat]])","v":0},null,null,null,null,0]
["I3. Amortització",{"$f":"SUM(B66:B68)","v":0},{"$f":"SUM(C66:C68)","v":0},{"$f":"SUM(DespesesProjecte5[[#This Row],[Import imputable a la subvenció municipal]],DespesesProjecte5[[#This Row],[Import de l''aportació / Cofinançament de l''entitat]])","v":0},null,null,{"$f":"SUM(G66:G68)","v":0},{"$f":"SUM(H66:H68)","v":0},0]
[null,null,null,{"$f":"SUM(DespesesProjecte5[[#This Row],[Import imputable a la subvenció municipal]],DespesesProjecte5[[#This Row],[Import de l''aportació / Cofinançament de l''entitat]])","v":0},null,null,null,null,0]
[null,null,null,{"$f":"SUM(DespesesProjecte5[[#This Row],[Import imputable a la subvenció municipal]],DespesesProjecte5[[#This Row],[Import de l''aportació / Cofinançament de l''entitat]])","v":0},null,null,null,null,0]
[null,null,null,{"$f":"SUM(DespesesProjecte5[[#This Row],[Import imputable a la subvenció municipal]],DespesesProjecte5[[#This Row],[Import de l''aportació / Cofinançament de l''entitat]])","v":0},null,null,null,null,0]
["I4. Lloguer de béns immobles",{"$f":"SUM(B70:B72)","v":0},{"$f":"SUM(C70:C72)","v":0},{"$f":"SUM(DespesesProjecte5[[#This Row],[Import imputable a la subvenció municipal]],DespesesProjecte5[[#This Row],[Import de l''aportació / Cofinançament de l''entitat]])","v":0},null,null,{"$f":"SUM(G70:G72)","v":0},{"$f":"SUM(H70:H72)","v":0},0]
[null,null,null,{"$f":"SUM(DespesesProjecte5[[#This Row],[Import imputable a la subvenció municipal]],DespesesProjecte5[[#This Row],[Import de l''aportació / Cofinançament de l''entitat]])","v":0},null,null,null,null,0]
[null,null,null,{"$f":"SUM(DespesesProjecte5[[#This Row],[Import imputable a la subvenció municipal]],DespesesProjecte5[[#This Row],[Import de l''aportació / Cofinançament de l''entitat]])","v":0},null,null,null,null,0]
[null,null,null,{"$f":"SUM(DespesesProjecte5[[#This Row],[Import imputable a la subvenció municipal]],DespesesProjecte5[[#This Row],[Import de l''aportació / Cofinançament de l''entitat]])","v":0},null,null,null,null,0]
["I5. Adquisició de materials i béns consumibles parcialment imputables al projecte",{"$f":"SUM(B74:B76)","v":0},{"$f":"SUM(C74:C76)","v":0},{"$f":"SUM(DespesesProjecte5[[#This Row],[Import imputable a la subvenció municipal]],DespesesProjecte5[[#This Row],[Import de l''aportació / Cofinançament de l''entitat]])","v":0},null,null,{"$f":"SUM(G74:G76)","v":0},{"$f":"SUM(H74:H76)","v":0},0]
[null,null,null,{"$f":"SUM(DespesesProjecte5[[#This Row],[Import imputable a la subvenció municipal]],DespesesProjecte5[[#This Row],[Import de l''aportació / Cofinançament de l''entitat]])","v":0},null,null,null,null,0]
[null,null,null,{"$f":"SUM(DespesesProjecte5[[#This Row],[Import imputable a la subvenció municipal]],DespesesProjecte5[[#This Row],[Import de l''aportació / Cofinançament de l''entitat]])","v":0},null,null,null,null,0]
[null,null,null,{"$f":"SUM(DespesesProjecte5[[#This Row],[Import imputable a la subvenció municipal]],DespesesProjecte5[[#This Row],[Import de l''aportació / Cofinançament de l''entitat]])","v":0},null,null,null,null,0]
["I6. Manteniment d’edificis i/o instal·lacions",{"$f":"SUM(B78:B80)","v":0},{"$f":"SUM(C78:C80)","v":0},{"$f":"SUM(DespesesProjecte5[[#This Row],[Import imputable a la subvenció municipal]],DespesesProjecte5[[#This Row],[Import de l''aportació / Cofinançament de l''entitat]])","v":0},null,null,{"$f":"SUM(G78:G80)","v":0},{"$f":"SUM(H78:H80)","v":0},0]
[null,null,null,{"$f":"SUM(DespesesProjecte5[[#This Row],[Import imputable a la subvenció municipal]],DespesesProjecte5[[#This Row],[Import de l''aportació / Cofinançament de l''entitat]])","v":0},null,null,null,null,0]
[null,null,null,{"$f":"SUM(DespesesProjecte5[[#This Row],[Import imputable a la subvenció municipal]],DespesesProjecte5[[#This Row],[Import de l''aportació / Cofinançament de l''entitat]])","v":0},null,null,null,null,0]
[null,null,null,{"$f":"SUM(DespesesProjecte5[[#This Row],[Import imputable a la subvenció municipal]],DespesesProjecte5[[#This Row],[Import de l''aportació / Cofinançament de l''entitat]])","v":0},null,null,null,null,0]
["I7. Comunicacions (telèfon, correus, connexió a internet)",{"$f":"SUM(B82:B84)","v":0},{"$f":"SUM(C82:C84)","v":0},{"$f":"SUM(DespesesProjecte5[[#This Row],[Import imputable a la subvenció municipal]],DespesesProjecte5[[#This Row],[Import de l''aportació / Cofinançament de l''entitat]])","v":0},null,null,{"$f":"SUM(G82:G84)","v":0},{"$f":"SUM(H82:H84)","v":0},0]
[null,null,null,{"$f":"SUM(DespesesProjecte5[[#This Row],[Import imputable a la subvenció municipal]],DespesesProjecte5[[#This Row],[Import de l''aportació / Cofinançament de l''entitat]])","v":0},null,null,null,null,0]
[null,null,null,{"$f":"SUM(DespesesProjecte5[[#This Row],[Import imputable a la subvenció municipal]],DespesesProjecte5[[#This Row],[Import de l''aportació / Cofinançament de l''entitat]])","v":0},null,null,null,null,0]
[null,null,null,{"$f":"SUM(DespesesProjecte5[[#This Row],[Import imputable a la subvenció municipal]],DespesesProjecte5[[#This Row],[Import de l''aportació / Cofinançament de l''entitat]])","v":0},null,null,null,null,0]
["I8. Despeses financeres",{"$f":"SUM(B86:B88)","v":0},{"$f":"SUM(C86:C88)","v":0},{"$f":"SUM(DespesesProjecte5[[#This Row],[Import imputable a la subvenció municipal]],DespesesProjecte5[[#This Row],[Import de l''aportació / Cofinançament de l''entitat]])","v":0},null,null,{"$f":"SUM(G86:G88)","v":0},{"$f":"SUM(H86:H88)","v":0},0]
[null,null,null,{"$f":"SUM(DespesesProjecte5[[#This Row],[Import imputable a la subvenció municipal]],DespesesProjecte5[[#This Row],[Import de l''aportació / Cofinançament de l''entitat]])","v":0},null,null,null,null,0]
[null,null,null,{"$f":"SUM(DespesesProjecte5[[#This Row],[Import imputable a la subvenció municipal]],DespesesProjecte5[[#This Row],[Import de l''aportació / Cofinançament de l''entitat]])","v":0},null,null,null,null,0]
[null,null,null,{"$f":"SUM(DespesesProjecte5[[#This Row],[Import imputable a la subvenció municipal]],DespesesProjecte5[[#This Row],[Import de l''aportació / Cofinançament de l''entitat]])","v":0},null,null,null,null,0]
["I9. Subministraments ",{"$f":"SUM(B90:B92)","v":0},{"$f":"SUM(C90:C92)","v":0},{"$f":"SUM(DespesesProjecte5[[#This Row],[Import imputable a la subvenció municipal]],DespesesProjecte5[[#This Row],[Import de l''aportació / Cofinançament de l''entitat]])","v":0},null,null,{"$f":"SUM(G90:G92)","v":0},{"$f":"SUM(H90:H92)","v":0},0]
[null,null,null,{"$f":"SUM(DespesesProjecte5[[#This Row],[Import imputable a la subvenció municipal]],DespesesProjecte5[[#This Row],[Import de l''aportació / Cofinançament de l''entitat]])","v":0},null,null,null,null,0]
[null,null,null,{"$f":"SUM(DespesesProjecte5[[#This Row],[Import imputable a la subvenció municipal]],DespesesProjecte5[[#This Row],[Import de l''aportació / Cofinançament de l''entitat]])","v":0},null,null,null,null,0]
[null,null,null,{"$f":"SUM(DespesesProjecte5[[#This Row],[Import imputable a la subvenció municipal]],DespesesProjecte5[[#This Row],[Import de l''aportació / Cofinançament de l''entitat]])","v":0},null,null,null,null,0]
["I10. Treball realitzat per altres empreses, parcialment imputables al projecte (neteja, seguretat...)",{"$f":"SUM(B94:B96)","v":0},{"$f":"SUM(C94:C96)","v":0},{"$f":"SUM(DespesesProjecte5[[#This Row],[Import imputable a la subvenció municipal]],DespesesProjecte5[[#This Row],[Import de l''aportació / Cofinançament de l''entitat]])","v":0},null,null,{"$f":"SUM(G94:G96)","v":0},{"$f":"SUM(H94:H96)","v":0},0]
[null,null,null,{"$f":"SUM(DespesesProjecte5[[#This Row],[Import imputable a la subvenció municipal]],DespesesProjecte5[[#This Row],[Import de l''aportació / Cofinançament de l''entitat]])","v":0},null,null,null,null,0]
[null,null,null,{"$f":"SUM(DespesesProjecte5[[#This Row],[Import imputable a la subvenció municipal]],DespesesProjecte5[[#This Row],[Import de l''aportació / Cofinançament de l''entitat]])","v":0},null,null,null,null,0]
[null,null,null,{"$f":"SUM(DespesesProjecte5[[#This Row],[Import imputable a la subvenció municipal]],DespesesProjecte5[[#This Row],[Import de l''aportació / Cofinançament de l''entitat]])","v":0},null,null,null,null,0]
["TOTAL DESPESES INDIRECTES (es podran assignar al projecte subvencionable fent sevir un percentatge d’assignació) - Màxim 10% de l’import imputable a la subvenció municipal",{"$f":"SUM(B57,B61,B65,B69,B73,B77,B81,B85,B89,B93)","v":0},{"$f":"SUM(C57,C61,C65,C69,C73,C77,C81,C85,C89,C93)","v":0},{"$f":"SUM(D57,D61,D65,D69,D73,D77,D81,D85,D89,D93)","v":0},null,null,{"$f":"SUM(G57,G61,G65,G69,G73,G77,G81,G85,G89,G93)","v":0},{"$f":"SUM(H57,H61,H65,H69,H73,H77,H81,H85,H89,H93)","v":0},{"$f":"SUM(I57,I61,I65,I69,I73,I77,I81,I85,I89,I93)","v":0},{"$f":"+IF(G97>H13*0.1,\"ALERTA: Màxim 10% de l'import imputable a la subvenció municipal\", \" \")","v":" "}]
["TOTAL DE DESPESES PREVISTES",{"$f":"SUM(B97,B56)","v":0},{"$f":"SUM(C97,C56)","v":0},{"$f":"SUM(D97,D56)","v":0},null,null,{"$f":"SUM(G97,G56)","v":0},{"$f":"SUM(H97,H56)","v":0},{"$f":"SUM(I97,I56)","v":0}]
[]
[]
[]
["Modalitat Ba. Intercooperació de 2n i major nivell: Projectes promoguts per organitzacions de l'ESS o de les finances ètiques de segon nivell i superior, que contribueixin al desplegament de l'Acord i Estratègia #ESSBCN2030 de Barcelona, i tinguin per destinatàries a les seves organitzacions sòcies"]
["1.  La quantia de la subvenció atorgada no superarà el 80% de la despesa total del projecte a subvencionar. "]
["2.  L'import màxim de subvenció per a la modalitat \"a\" de l’àmbit temàtic B d'Intercooperació (Ba) és 35.000€."]
["3.  En el cas que la sol·licitud presentada sobrepassi l’import màxim, es considerarà com a import sol·licitat el màxim de l'establert a la convocatòria."]
["4.  Es limita amb un màxim del 25% l'import de la subvenció per a despeses de personal propi assignat al projecte subvencionat (retribucions i seguretat social- règim general o autònoms). "]
["5. Són imputables en aquesta modalitat les despeses indirectes, detallades en l’apartat 13.3. de les bases reguladores; amb un màxim del 10% de l'import de la subvenció.\nEl caràcter subvencionable de la despesa d'amortització estarà subjecte a les condicions següents:\n> Que les subvencions no hagin contribuït a la compra dels béns.\n> Que l'amortització es calculi de conformitat amb les normes de comptabilitat generalment acceptades.\n> Que el cost es refereixi al període subvencionable.\n\n"]
["6.  Quan s'hagi de fer despeses de més de 12.000 €, sense IVA, en el cas de prestacions de serveis o lliurament de béns i per aquelles despeses de més de 30.000 €,  sense IVA, en el cas d'execució d'obres, s'hauran d'incorporar tres pressupostos sol·licitats i argumentar el motiu de l'adjudicació en el cas de no ser la proposta més avantatjosa econòmicament."]
["7. Per les subvencions atorgades per import igual o superior a 20.000 € és necessari un informe d'auditoria per a la justificació. L'import d'aquest informe es considera despesa subvencionable, amb un límit màxim de 1.500€."]
["8. En cap cas es consideraran despeses subvencionables:\n> Els impostos indirectes quan siguin susceptibles de recuperació o compensació.\n> Les despeses d'inversió, incloses les adquisicions de béns mobles.\n> Les despeses realitzades amb data anterior a l'inici del projecte i data posterior a la finalització del projecte.\n> Altres despeses que s'indiquin a la convocatòria."]
["9. La retribució de les persones contractades en el marc del projecte subvencionat no pot ser inferior al Salari Mínim Interprofessional (SMI), ni a l'estipulada al corresponent conveni o marc normatiu de referència (punt 7 de les bases 2021: requisits dels projectes)."]
["10. Els materials produïts de difusió, estudis, informes o materials didàctics utilitzats, etc. en el cas de tractar-se de despesa elegible de la subvenció, hauran de tenir llicència Creative Commons -Compartir Igual- (share a like)  i no podrà tenir la condició –Sense Obres Derivades- (no derivate Works)."]
["11. Els projectes subvencionats han de fomentar activitats d'interès públic o social, les quals han de ser gratuïtes per a les persones participants o en cap cas el preu ha de suposar un obstacle per a la seva participació, buscant altres formes d'accés per a persones amb dificultats econòmiques. En el cas que hi hagi algun tipus de lucre, haurà de revertir en les pròpies activitats subvencionades."]
["12. L'Ajuntament de Barcelona i les seves entitats municipals en cap cas subvencionaran el mateix projecte, executat durant el mateix període, per cap altre procediment de concessió que no sigui el regulat per les bases reguladores."]
["13. El/la beneficiari/ària no podrà alterar en cap cas el destí de les subvencions concedides."]
["14. L'organització designada com a representant de l'agrupació serà plenament responsable del projecte davant l'Ajuntament respecte al compliment de les obligacions establertes en les bases reguladores, sense perjudici de la responsabilitat de les altres organitzacions sòcies de l'agrupació, tot sent-li d'aplicació els requisits previstos al punt 6.1 de les bases reguladores."]
["15. En cap cas podran formar part de l'agrupació les organitzacions que hagin rebut altres subvencions per a l'execució del mateix projecte d'altres administracions públiques."]

{"sheet":"Resum Pressupost","index":2,"n_rows":31,"n_cols":11,"rows_kept":31,"cut":false,"hidden":false,"merged":[[1,2,1,7],[5,0,5,1],[3,0,3,8],[17,4,18,4],[23,6,23,7],[28,7,28,9],[29,6,29,11],[6,9,7,9],[6,0,7,1],[6,2,7,2],[6,3,7,3],[6,4,7,4],[6,6,7,7],[6,8,7,8],[8,0,19,0],[17,1,18,1],[17,2,18,2],[17,3,18,3]]}
[]
[null,null,"Resum pressupost modalitat Ba"]
[]
["Subvencions de l'Ajuntament de Barcelona per a la reactivació i l'enfortiment de l'Economia Social i Solidària i el desenvolupament de projectes d'intercooperació que desenvolupen l'Estratègia #ESSBCN2030",null,null,null,null,null,null,null,null,"MODALITAT Ba"]
[]
["DESPESES PREVISTES",null,null,null,null,null,"INGRESSOS PREVISTOS"]
["Despeses directes \n(aquelles que s'identifiquen directament amb el projecte)",null,"Previsió inicial cost TOTAL","Previsió reformulada cost TOTAL","Import imputat a la subvenció ATORGADA",null,"Ingressos previstos",null,"Previsió inicial ingrés total","Previsió reformulada ingrés total"]
[]
["Ba","D1. Retribucions i seguretat social (règim general o règim d’autònoms) del personal propi vinculat/da al projecte (màxim 25% subvenció)",{"$f":"+'Reformulació Pressupost Ba'!D22","v":0},{"$f":"+'Reformulació Pressupost Ba'!I22","v":0},{"$f":"+'Reformulació Pressupost Ba'!G22","v":0},{"$f":"+IF(D9<0,\"No s'admeten valors negatius\",\"\")","v":""},"A.","Subvenció municipal (import sol·licitat a la instància/atorgat)"]
[null,"D2.  Treballs realitzats per professionals i empreses externes directament vinculades a l’acompanyament de processos de l’organització i amb les seves associades",{"$f":"+'Reformulació Pressupost Ba'!D29","v":0},{"$f":"+'Reformulació Pressupost Ba'!I29","v":0},{"$f":"+'Reformulació Pressupost Ba'!G29","v":0},{"$f":"+IF(D10<0,\"No s'admeten valors negatius\",\"\")","v":""},"B.","Subvencions d'altres administracions",null,null,{"$f":"+IF(J10<0,\"No s'admeten valors negatius\",\"\")","v":""}]
[null,"D3.  Lloguer de béns immobles directament vinculats al projecte subvencionable",{"$f":"+'Reformulació Pressupost Ba'!D33","v":0},{"$f":"+'Reformulació Pressupost Ba'!I33","v":0},{"$f":"+'Reformulació Pressupost Ba'!G33","v":0},{"$f":"+IF(D11<0,\"No s'admeten valors negatius\",\"\")","v":""},"C.","Subvencions d'ens privats",null,null,""]
[null,"D4.  Adquisició de materials i béns consumibles íntegrament vinculats al projecte subvencionable",{"$f":"+'Reformulació Pressupost Ba'!D37","v":0},{"$f":"+'Reformulació Pressupost Ba'!I37","v":0},{"$f":"+'Reformulació Pressupost Ba'!G37","v":0},{"$f":"+IF(D12<0,\"No s'admeten valors negatius\",\"\")","v":""},"D.","Recursos propis de l'organització aplicats al projecte"]
[null,"D5.  Publicitat i propaganda de les activitats directament vinculades al projecte subvencionable",{"$f":"+'Reformulació Pressupost Ba'!D41","v":0},{"$f":"+'Reformulació Pressupost Ba'!I41","v":0},{"$f":"+'Reformulació Pressupost Ba'!G41","v":0},null,"E.","Taquillatge"]
[null,"D6.  Viatges i desplaçaments imputables a les activitats del projecte subvencionable (Màx. 10% subvenció)",{"$f":"+'Reformulació Pressupost Ba'!D45","v":0},{"$f":"+'Reformulació Pressupost Ba'!I45","v":0},{"$f":"+'Reformulació Pressupost Ba'!G45","v":0},null,"F.","Quotes d'inscripció"]
[null,"D7.  Despeses de l’informe d’auditoria (màx. 1.500€ subvenció)",{"$f":"+'Reformulació Pressupost Ba'!D49","v":0},{"$f":"+'Reformulació Pressupost Ba'!I49","v":0},{"$f":"+'Reformulació Pressupost Ba'!G49","v":0},null,"G.","Venda de Productes"]
[null,"D8.  Altres despeses que de manera justificada puguin imputar-se directament al projecte subvencionable",{"$f":"+'Reformulació Pressupost Ba'!D51","v":0},{"$f":"+'Reformulació Pressupost Ba'!I51","v":0},{"$f":"+'Reformulació Pressupost Ba'!G51","v":0},null,"H","Publicitat i/o Esponsorització"]
[null,"Total Despeses Directes   ",{"$f":"SUM(C9:C16)","v":0},{"$f":"SUM(D9:D16)","v":0},{"$f":"SUM(E9:E16)","v":0},null,"I.","Altres ingressos"]
[null,"Despeses indirectes (es podran assignar al projecte fent sevir un percentatge d’assignació) ","Previsió inicial cost TOTAL","Previsió reformulada cost TOTAL","Import imputat a la subvenció ATORGADA",null,null,"Total Ingressos",{"$f":"SUM(I9:I17)","v":0},{"$f":"SUM(J9:J17)","v":0}]
[]
[null,"I.1 Personal de suport al projecte subvencionat (Nòmines i seguretat social)",{"$f":"+'Reformulació Pressupost Ba'!D57","v":0},{"$f":"+'Reformulació Pressupost Ba'!I57","v":0},{"$f":"+'Reformulació Pressupost Ba'!G57","v":0}]
[null,"I.2  Assegurances",{"$f":"+'Reformulació Pressupost Ba'!D61","v":0},{"$f":"+'Reformulació Pressupost Ba'!I61","v":0},{"$f":"+'Reformulació Pressupost Ba'!G61","v":0}]
[null,"I.3  Amortització",{"$f":"+'Reformulació Pressupost Ba'!D65","v":0},{"$f":"+'Reformulació Pressupost Ba'!I65","v":0},{"$f":"+'Reformulació Pressupost Ba'!G65","v":0}]
[null,"I.4  Lloguer de béns immobles",{"$f":"+'Reformulació Pressupost Ba'!D69","v":0},{"$f":"+'Reformulació Pressupost Ba'!I69","v":0},{"$f":"+'Reformulació Pressupost Ba'!G69","v":0},{"$f":"+IF(D22<0,\"No s'admeten valors negatius\",\"\")","v":""}]
[null,"I.5  Adquisició de materials i béns consumibles parcialment imputables al projecte",{"$f":"+'Reformulació Pressupost Ba'!D73","v":0},{"$f":"+'Reformulació Pressupost Ba'!I73","v":0},{"$f":"+'Reformulació Pressupost Ba'!G73","v":0},null,"Ingressos menys despeses ",null,{"$f":"+I18-C31","v":0},{"$f":"+J18-D31","v":0}]
[null,"I.6  Manteniment d’edificis i/o instal·lacions",{"$f":"+'Reformulació Pressupost Ba'!D77","v":0},{"$f":"+'Reformulació Pressupost Ba'!I77","v":0},{"$f":"+'Reformulació Pressupost Ba'!G77","v":0}]
[null,"I.7  Comunicacions (telèfon, correus, connexió a internet)",{"$f":"+'Reformulació Pressupost Ba'!D81","v":0},{"$f":"+'Reformulació Pressupost Ba'!I81","v":0},{"$f":"+'Reformulació Pressupost Ba'!G81","v":0},null,null,null,"% subvencionat inicialment",{"$f":"I9/C31","v":{"$error":"#DIV/0!"}}]
[null,"I.8  Despeses financeres",{"$f":"+'Reformulació Pressupost Ba'!D85","v":0},{"$f":"+'Reformulació Pressupost Ba'!I85","v":0},{"$f":"+'Reformulació Pressupost Ba'!G85","v":0}]
[null,"I.9  Subministraments ",{"$f":"+'Reformulació Pressupost Ba'!D89","v":0},{"$f":"+'Reformulació Pressupost Ba'!I89","v":0},{"$f":"+'Reformulació Pressupost Ba'!G89","v":0},null,null,null,"% subvencionat després de reformular",{"$f":"+J9/D31","v":{"$error":"#DIV/0!"}},"*"]
[null,"I.10  Treball realitzat per altres empreses, parcialment imputables al projecte subvencionable (neteja, seguretat...)",{"$f":"+'Reformulació Pressupost Ba'!D93","v":0},{"$f":"+'Reformulació Pressupost Ba'!I93","v":0},{"$f":"+'Reformulació Pressupost Ba'!G93","v":0},null,null,"*Aquest percentatge ha de ser igual o menor al percentatge subvencionat inicialment."]
[null,"Total Despeses Indirectes   (Màx. 10% subv)",{"$f":"SUM(C20:C29)","v":0},{"$f":"SUM(D20:D29)","v":0},{"$f":"SUM(E20:E29)","v":0}]
[null,"Total Despeses ",{"$f":"+C17+C30","v":0},{"$f":"+D17+D30","v":0},{"$f":"+E17+E30","v":0}]